Department Family,Date Paid,Expense Type,Expense Area,Supplier,Transaction Number,Amount,Vat Inclusive
Crown Prosecution Service ,04/07/23,Property management fees,Estate and FM: Administration,Government Property Agency London,00000001/26469,"6,568.72",Y
Crown Prosecution Service ,04/07/23,Property management fees,Estate and FM: Programme,Government Property Agency London,00000001/26469,"32,070.78",Y
Crown Prosecution Service ,04/07/23,National non domestic rates,Estate and FM: Administration,Government Property Agency London,00000001/26469,"97,830.26",
Crown Prosecution Service ,04/07/23,Lease liability non current lease payments,Balance Sheet,Government Property Agency London,00000001/26469,"1,201,346.27",
Crown Prosecution Service ,04/07/23,National non domestic rates,Estate and FM: Programme,Government Property Agency London,00000001/26469,"477,641.86",
Crown Prosecution Service ,04/07/23,Landlord service charge,Estate and FM: Administration,Government Property Agency London,00000001/26469,"314,061.49",
Crown Prosecution Service ,04/07/23,Landlord service charge,Estate and FM: Programme,Government Property Agency London,00000001/26469,"1,533,359.01",
Crown Prosecution Service ,04/07/23,Landlord service charge,Estate and FM: Programme,Government Property Agency London,00000001/26512,"1,533,359.01",
Crown Prosecution Service ,04/07/23,Property management fees,Estate and FM: Programme,Government Property Agency London,00000001/26512,"3,739.98",Y
Crown Prosecution Service ,04/07/23,Property management fees,Estate and FM: Administration,Government Property Agency London,00000001/26512,766.02,Y
Crown Prosecution Service ,04/07/23,Landlord service charge,Estate and FM: Administration,Government Property Agency London,00000001/26512,"314,061.49",
Crown Prosecution Service ,04/07/23,National non domestic rates,Estate and FM: Administration,Government Property Agency London,00000001/26512,"97,830.26",
Crown Prosecution Service ,04/07/23,Lease liability non current lease payments,Balance Sheet,Government Property Agency London,00000001/26512,"1,201,346.27",
Crown Prosecution Service ,04/07/23,National non domestic rates,Estate and FM: Programme,Government Property Agency London,00000001/26512,"477,641.86",
Crown Prosecution Service ,04/07/23,Crown Court Graduated Fee Scheme,London North Complex Casework Unit,Foundry Chambers (9-12 Bell Yard),196963/AH - 3,"25,220.40",Y
Crown Prosecution Service ,04/07/23,Crown Court Very High Cost Cases Full Scheme,Cymru Wales Complex Casework Unit,23 Essex Street Chambers,204299-TCR-ANO,"39,168.80",Y
Crown Prosecution Service ,04/07/23,Crown Court Graduated Fee Scheme,West Midlands Complex Casework Unit,No 5 Fountain Court Chambers,831724/MLH/2,"59,098.32",Y
Crown Prosecution Service ,04/07/23,Crown Court Very High Cost Cases Full Scheme,Pre Enforcement North,Chambers of Andrew Mitchell QC 33 Chancery Lane,97168,"27,150.00",Y
Crown Prosecution Service ,04/07/23,Crown Court Graduated Fee Scheme,London South Crown Court Unit,5 King's Bench Walk,AD 178135 TRIAL,"34,900.20",Y
Crown Prosecution Service ,04/07/23,Crown Court Graduated Fee Scheme,London North Complex Casework Unit,QEB Hollis Whiteman Chambers,ebkc 112094 a,"102,686.88",Y
Crown Prosecution Service ,04/07/23,Crown Court Graduated Fee Scheme,London North Complex Casework Unit,QEB Hollis Whiteman Chambers,pm 112094 a,"51,339.60",Y
Crown Prosecution Service ,04/07/23,Crown Court Graduated Fee Scheme,London South Crown Court Unit,5 King's Bench Walk,RK 178135 TRIAL,"48,028.20",Y
Crown Prosecution Service ,04/07/23,Crown Court Graduated Fee Scheme,Thames Chiltern Crown Court Unit,4 Breams Buildings,SVW 317495 1/7,"34,994.40",Y
Crown Prosecution Service ,05/07/23,Professional subscriptions and memberships,Operational Change,Crimeline Training Ltd Wigan,20703,"44,794.80",Y
Crown Prosecution Service ,05/07/23,Recoverable VAT control,Balance Sheet,CGI IT UK Ltd,GB014106712,"6,273.72",Y
Crown Prosecution Service ,05/07/23,IT services,DTS Programme Project Cost,CGI IT UK Ltd,GB014106712,"31,368.60",
Crown Prosecution Service ,05/07/23,Recoverable VAT control,Balance Sheet,CGI IT UK Ltd,GB014108411,"4,671.47",Y
Crown Prosecution Service ,05/07/23,IT services,DTS Programme Project Cost,CGI IT UK Ltd,GB014108411,"23,357.36",
Crown Prosecution Service ,05/07/23,Recoverable VAT control,Balance Sheet,CGI IT UK Ltd,GB014108417,"96,923.31",Y
Crown Prosecution Service ,05/07/23,Intangibles asset purchase clearing CMS,DTS ICT Capital Expenditure,CGI IT UK Ltd,GB014108417,"484,616.57",
Crown Prosecution Service ,06/07/23,Crown Court Very High Cost Cases Full Scheme,Mersey Cheshire Complex Casework Unit,St Johns Buildings - 24a - 28 St John Street,1125990 PIA17,"30,084.48",Y
Crown Prosecution Service ,06/07/23,Crown Court Graduated Fee Scheme,Wessex Complex Casework Unit,Guildhall Chambers Bristol,198135 CT,"29,695.68",Y
Crown Prosecution Service ,06/07/23,General Professional Services,Strategy and Policy,Reed Talent Solutions London,R41068746M,"159,351.31",Y
Crown Prosecution Service ,07/07/23,Crown Court Graduated Fee Scheme,West Midlands Complex Casework Unit,Seven Bedford Row,189440gjw,"76,511.40",Y
Crown Prosecution Service ,07/07/23,Crown Court Graduated Fee Scheme,West Midlands Complex Casework Unit,No 5 Fountain Court Chambers,790286/JH//4,"56,613.60",Y
Crown Prosecution Service ,07/07/23,Crown Court Graduated Fee Scheme,RWD North Unit,5 King's Bench Walk,BHO 172001 TRIAL,"38,114.04",Y
Crown Prosecution Service ,10/07/23,Overseas Residential accommodation,Intl Liaison Prosecutors,"Foreign, Commonwealth and Development Office",20007488,"7,800.00",
Crown Prosecution Service ,10/07/23,FCO platform charges excluding leases,Intl Liaison Prosecutors,"Foreign, Commonwealth and Development Office",20007488,"6,050.00",
Crown Prosecution Service ,10/07/23,Overseas Residential accommodation,Intl Liaison Prosecutors,"Foreign, Commonwealth and Development Office",20007488,"7,225.00",
Crown Prosecution Service ,10/07/23,Overseas Residential accommodation,Intl Liaison Prosecutors,"Foreign, Commonwealth and Development Office",20007488,"4,775.00",
Crown Prosecution Service ,10/07/23,Overseas Residential accommodation,Intl Liaison Prosecutors,"Foreign, Commonwealth and Development Office",20007488,"12,800.00",
Crown Prosecution Service ,10/07/23,Overseas Residential accommodation,Intl Liaison Prosecutors,"Foreign, Commonwealth and Development Office",20007488,"13,125.00",
Crown Prosecution Service ,10/07/23,Overseas Residential accommodation,Intl Liaison Prosecutors,"Foreign, Commonwealth and Development Office",20007488,"6,450.00",
Crown Prosecution Service ,10/07/23,FCO platform charges excluding leases,Intl Liaison Prosecutors,"Foreign, Commonwealth and Development Office",20007488,"18,100.00",
Crown Prosecution Service ,10/07/23,FCO platform charges excluding leases,Intl Liaison Prosecutors,"Foreign, Commonwealth and Development Office",20007488,"17,800.00",
Crown Prosecution Service ,10/07/23,FCO platform charges excluding leases,Intl Liaison Prosecutors,"Foreign, Commonwealth and Development Office",20007488,"10,225.00",
Crown Prosecution Service ,10/07/23,FCO platform charges excluding leases,Intl Liaison Prosecutors,"Foreign, Commonwealth and Development Office",20007488,"11,800.00",
Crown Prosecution Service ,10/07/23,FCO platform charges excluding leases,Intl Liaison Prosecutors,"Foreign, Commonwealth and Development Office",20007488,"11,400.00",
Crown Prosecution Service ,10/07/23,FCO platform charges excluding leases,Intl Liaison Prosecutors,"Foreign, Commonwealth and Development Office",20007488,"9,825.00",
Crown Prosecution Service ,10/07/23,FCO platform charges excluding leases,Intl Liaison Prosecutors,"Foreign, Commonwealth and Development Office",20007488,"13,800.00",
Crown Prosecution Service ,10/07/23,Overseas Residential accommodation,Intl Liaison Prosecutors,"Foreign, Commonwealth and Development Office",20007488,"7,275.00",
Crown Prosecution Service ,10/07/23,FCO platform charges excluding leases,Intl Liaison Prosecutors,"Foreign, Commonwealth and Development Office",20007488,"7,550.00",
Crown Prosecution Service ,10/07/23,FCO platform charges excluding leases,Intl Liaison Prosecutors,"Foreign, Commonwealth and Development Office",20007488,"13,925.00",
Crown Prosecution Service ,10/07/23,Overseas Residential accommodation,Intl Liaison Prosecutors,"Foreign, Commonwealth and Development Office",20007488,"4,375.00",
Crown Prosecution Service ,10/07/23,Overseas Residential accommodation,Intl Liaison Prosecutors,"Foreign, Commonwealth and Development Office",20007488,"5,000.00",
Crown Prosecution Service ,10/07/23,FCO platform charges excluding leases,Intl Liaison Prosecutors,"Foreign, Commonwealth and Development Office",20007488,"8,900.00",
Crown Prosecution Service ,10/07/23,Overseas Residential accommodation,Intl Liaison Prosecutors,"Foreign, Commonwealth and Development Office",20007488,"11,775.00",
Crown Prosecution Service ,10/07/23,Overseas Residential accommodation,Intl Liaison Prosecutors,"Foreign, Commonwealth and Development Office",20007488,"4,225.00",
Crown Prosecution Service ,10/07/23,FCO platform charges excluding leases,Intl Liaison Prosecutors,"Foreign, Commonwealth and Development Office",20007488,"14,050.00",
Crown Prosecution Service ,10/07/23,FCO platform charges excluding leases,Intl External Funding,"Foreign, Commonwealth and Development Office",20007488,"6,925.00",
Crown Prosecution Service ,10/07/23,FCO platform charges excluding leases,Intl Liaison Prosecutors,"Foreign, Commonwealth and Development Office",20007488,"20,700.00",
Crown Prosecution Service ,10/07/23,Overseas Residential accommodation,Intl Liaison Prosecutors,"Foreign, Commonwealth and Development Office",20007488,"8,700.00",
Crown Prosecution Service ,10/07/23,FCO platform charges excluding leases,Intl Liaison Prosecutors,"Foreign, Commonwealth and Development Office",20007488,"18,100.00",
Crown Prosecution Service ,10/07/23,Overseas Residential accommodation,Intl External Funding,"Foreign, Commonwealth and Development Office",20007488,"5,800.00",
Crown Prosecution Service ,10/07/23,Overseas Residential accommodation,Intl Liaison Prosecutors,"Foreign, Commonwealth and Development Office",20007488,"8,400.00",
Crown Prosecution Service ,10/07/23,Overseas Residential accommodation,Intl Liaison Prosecutors,"Foreign, Commonwealth and Development Office",20007488,"10,000.00",
Crown Prosecution Service ,10/07/23,Overseas Residential accommodation,Intl Liaison Prosecutors,"Foreign, Commonwealth and Development Office",20007488,"9,300.00",
Crown Prosecution Service ,10/07/23,FCO platform charges excluding leases,Intl Liaison Prosecutors,"Foreign, Commonwealth and Development Office",20007488,"5,900.00",
Crown Prosecution Service ,10/07/23,FCO platform charges excluding leases,Intl Liaison Prosecutors,"Foreign, Commonwealth and Development Office",20007488,"14,048.98",
Crown Prosecution Service ,10/07/23,Crown Court Graduated Fee Scheme,Mersey Cheshire Crown Court Unit,Exchange Chambers Leeds ,596807 - NJ CLAIM 3,"25,438.08",Y
Crown Prosecution Service ,10/07/23,Other publicity and media costs,PF Operational HR Costs,Linkedin Dublin,78111685541,"45,200.00",
Crown Prosecution Service ,10/07/23,Crown Court Graduated Fee Scheme,West Midlands Crown Court Unit,No 5 Fountain Court Chambers,827117/HSS/1,"33,427.20",Y
Crown Prosecution Service ,10/07/23,Crown Court Graduated Fee Scheme,RWD North Unit,2 Harcourt Buildings,DH:116163,"25,370.76",Y
Crown Prosecution Service ,10/07/23,Crown Court Very High Cost Cases Full Scheme,East Midlands Complex Casework Unit,Seven Bedford Row,34,"86,608.40",Y
Crown Prosecution Service ,10/07/23,Crown Court Graduated Fee Scheme,West Midlands Complex Casework Unit,St Philips Chambers,T 675396 JJ,"29,233.20",Y
Crown Prosecution Service ,11/07/23,Other managed/contractor services,DID Security and Information,Iron Mountain Ltd,0770659,"68,206.20",Y
Crown Prosecution Service ,11/07/23,Crown Court Graduated Fee Scheme,London North Complex Casework Unit,5 Paper Buildings,118447/DH1,"25,122.00",Y
Crown Prosecution Service ,11/07/23,IT services,DTS Programme Project Cost,Accenture (UK) Ltd London,3003616771,"29,233.50",Y
Crown Prosecution Service ,11/07/23,IT services,DTS Programme Project Cost,Vodafone Ltd formerly Cable and Wireless Milton Keynes,4033405,"38,817.60",Y
Crown Prosecution Service ,11/07/23,IT services,Other IT costs,Lumen Technologies UK Ltd,648026938/1149410,"51,727.82",Y
Crown Prosecution Service ,11/07/23,Short term leases from 2 to 12 months: IT and Equipment,Print Contract,Xerox (UK) Ltd,900229288,"21,850.00",
Crown Prosecution Service ,11/07/23,Recoverable VAT control,Balance Sheet,Xerox (UK) Ltd,900229288,"4,370.00",Y
Crown Prosecution Service ,12/07/23,Advice/PreSending Very High Cost Cases Full Scheme,Mersey Cheshire Complex Casework Unit,Harrington Street Chambers,1096572/NJS42,"41,720.30",
Crown Prosecution Service ,12/07/23,Crown Court Graduated Fee Scheme,Counter Terrorism Unit: Internal Funding,No 5 Fountain Court Chambers,804050/MBK/1,"29,793.30",Y
Crown Prosecution Service ,12/07/23,Crown Court Graduated Fee Scheme,London North Complex Casework Unit,2 Bedford Row Chambers,JAC199752/2,"38,165.28",
Crown Prosecution Service ,13/07/23,Advice/PreSending Very High Cost Cases Full Scheme,RWD North Unit,St Pauls Chambers Leeds,140408 inc 41 HWA,"31,798.80",Y
Crown Prosecution Service ,13/07/23,Crown Court Graduated Fee Scheme,London North RASSO,Goldsmith Chambers,194011AMQC7,"47,145.60",Y
Crown Prosecution Service ,13/07/23,Crown Court Graduated Fee Scheme,South West Complex Casework Unit,Albion Chambers,201247 AV ,"87,902.22",Y
Crown Prosecution Service ,13/07/23,Crown Court Graduated Fee Scheme,London North Complex Casework Unit,5 King's Bench Walk,AOKC 173310,"56,183.94",Y
Crown Prosecution Service ,13/07/23,Crown Court Graduated Fee Scheme,London North Crown Court Unit,QEB Hollis Whiteman Chambers,OM 108135 E,"27,793.20",Y
Crown Prosecution Service ,13/07/23,Crown Court Graduated Fee Scheme,London North Crown Court Unit,QEB Hollis Whiteman Chambers,RS 108135 E,"40,555.20",Y
Crown Prosecution Service ,14/07/23,Advice/PreSending Very High Cost Cases Full Scheme,Mersey Cheshire Complex Casework Unit,Harrington Street Chambers,1096572/SDS42,"25,738.92",
Crown Prosecution Service ,14/07/23,Crown Court Graduated Fee Scheme,West Midlands Complex Casework Unit,No 5 Fountain Court Chambers,834693/ADW/2,"36,316.80",Y
Crown Prosecution Service ,14/07/23,Crown Court Graduated Fee Scheme,West Midlands Complex Casework Unit,No 5 Fountain Court Chambers,834693/AFK1,"72,861.84",Y
Crown Prosecution Service ,14/07/23,Crown Court Graduated Fee Scheme,West Midlands Complex Casework Unit,St Philips Chambers,SLKC,"73,207.28",Y
Crown Prosecution Service ,14/07/23,Crown Court Graduated Fee Scheme,London North Complex Casework Unit,5 King's Bench Walk,DRKC175572,"52,239.12",Y
Crown Prosecution Service ,14/07/23,Recoverable VAT control,Balance Sheet,Konica Minolta Business Solutions Limited,Fleet202304,"15,299.28",Y
Crown Prosecution Service ,14/07/23,Variable lease payment expenses IT and Equipment,Print Contract,Konica Minolta Business Solutions Limited,Fleet202304,"76,496.40",
Crown Prosecution Service ,14/07/23,Recoverable VAT control,Balance Sheet,Konica Minolta Business Solutions Limited,Fleet202305,"20,968.59",Y
Crown Prosecution Service ,14/07/23,Variable lease payment expenses IT and Equipment,Print Contract,Konica Minolta Business Solutions Limited,Fleet202305,"104,842.96",
Crown Prosecution Service ,14/07/23,IT services,DTS Programme Project Cost,eSynergy Solutions Ltd,INV00001287,"34,200.00",Y
Crown Prosecution Service ,14/07/23,IT services,DTS Programme Project Cost,eSynergy Solutions Ltd,INV00001289,"68,270.16",Y
Crown Prosecution Service ,14/07/23,IT services,DTS Programme Project Cost,eSynergy Solutions Ltd,INV00001302,"163,545.62",Y
Crown Prosecution Service ,14/07/23,Crown Court Graduated Fee Scheme,West Midlands Crown Court Unit,St Ives Chambers,rw220848,"27,043.20",Y
Crown Prosecution Service ,17/07/23,Crown Court Very High Cost Cases Full Scheme,SEOC Team 2,5 SAH Services Ltd,140066-1/EB June 23,"26,578.40",Y
Crown Prosecution Service ,17/07/23,Crown Court Graduated Fee Scheme,Yorks and Humbs CC Legal,New Park Court Chambers Leeds,364810-3/EF,"33,912.24",Y
Crown Prosecution Service ,17/07/23,Crown Court Graduated Fee Scheme,London North Complex Casework Unit,2 Harcourt Buildings,JD:117698,"47,466.00",Y
Crown Prosecution Service ,17/07/23,Recoverable VAT control,Balance Sheet,Bray Leino Ltd Devon,SI0038734BLE,"20,756.53",Y
Crown Prosecution Service ,17/07/23,General Professional Services,IAP Conference,Bray Leino Ltd Devon,SI0038734BLE,"103,782.65",
Crown Prosecution Service ,18/07/23,Variable lease payment expenses IT and Equipment,Print Contract,Konica Minolta Business Solutions Limited,1165791155,"29,143.04",
Crown Prosecution Service ,18/07/23,Recoverable VAT control,Balance Sheet,Konica Minolta Business Solutions Limited,1165791155,"5,828.61",Y
Crown Prosecution Service ,18/07/23,IT non capital software licences,Legal Reference and ICT Licenses,Insight Direct UK Ltd Uxbridge,2100630971,"67,584.00",Y
Crown Prosecution Service ,18/07/23,Recoverable VAT control,Balance Sheet,Konica Minolta Business Solutions Limited,Bulk202304,"29,085.29",Y
Crown Prosecution Service ,18/07/23,Lease liability non current lease payments,Balance Sheet,Konica Minolta Business Solutions Limited,Bulk202304,"20,790.00",
Crown Prosecution Service ,18/07/23,Variable lease payment expenses IT and Equipment,Print Contract,Konica Minolta Business Solutions Limited,Bulk202304,"124,636.43",
Crown Prosecution Service ,18/07/23,Recoverable VAT control,Balance Sheet,Konica Minolta Business Solutions Limited,Bulk202305,"27,562.37",Y
Crown Prosecution Service ,18/07/23,Lease liability non current lease payments,Balance Sheet,Konica Minolta Business Solutions Limited,Bulk202305,"20,790.00",
Crown Prosecution Service ,18/07/23,Variable lease payment expenses IT and Equipment,Print Contract,Konica Minolta Business Solutions Limited,Bulk202305,"117,021.86",
Crown Prosecution Service ,18/07/23,Crown Court Graduated Fee Scheme,London North Complex Casework Unit,3 Raymond Buildings,HD/253086,"77,994.96",Y
Crown Prosecution Service ,18/07/23,Crown Court Graduated Fee Scheme,London North Complex Casework Unit,3 Raymond Buildings,LPE/253086,"41,094.48",Y
Crown Prosecution Service ,19/07/23,Landlord service charge,Estate and FM: Programme,Government Property Agency London,00000001/14388SUPP,"50,030.49",
Crown Prosecution Service ,19/07/23,Landlord service charge,Estate and FM: Administration,Government Property Agency London,00000001/14388SUPP,"50,030.49",
Crown Prosecution Service ,19/07/23,Crown Court Graduated Fee Scheme,West Midlands Crown Court Unit,6 Kings Bench Walk- Chambers of D Fisher & D Perry,104575 TB1,"30,604.80",Y
Crown Prosecution Service ,19/07/23,Crown Court Graduated Fee Scheme,West Midlands Complex Casework Unit,St Philips Chambers,679594 MWC,"35,896.56",Y
Crown Prosecution Service ,19/07/23,Crown Court Graduated Fee Scheme,West Midlands Complex Casework Unit,St Philips Chambers,690720 T BPC,"31,115.04",Y
Crown Prosecution Service ,19/07/23,UK Hotels,DTUS,Clarity Travel Management,CPSHQ020723,116.01,Y
Crown Prosecution Service ,19/07/23,UK Hotels,CFO Estates,Clarity Travel Management,CPSHQ020723,102.00,Y
Crown Prosecution Service ,19/07/23,UK Hotels,Operational Business Support,Clarity Travel Management,CPSHQ020723,134.00,Y
Crown Prosecution Service ,19/07/23,UK Hotels,Court Business Unit,Clarity Travel Management,CPSHQ020723,234.81,Y
Crown Prosecution Service ,19/07/23,UK Hotels,Central Legal Training Team,Clarity Travel Management,CPSHQ020723,"4,206.58",Y
Crown Prosecution Service ,19/07/23,UK Hotels,CFO Fin System Change and Costings,Clarity Travel Management,CPSHQ020723,400.05,Y
Crown Prosecution Service ,19/07/23,UK Hotels,Central Operational Training,Clarity Travel Management,CPSHQ020723,"1,663.09",Y
Crown Prosecution Service ,19/07/23,UK Hotels,CFO Finance Operations,Clarity Travel Management,CPSHQ020723,151.00,Y
Crown Prosecution Service ,19/07/23,UK Hotels,Corporate Communication,Clarity Travel Management,CPSHQ020723,"1,013.95",Y
Crown Prosecution Service ,19/07/23,UK Hotels,DID DTS Change,Clarity Travel Management,CPSHQ020723,"2,598.16",Y
Crown Prosecution Service ,19/07/23,UK Hotels,Compliance and Assurance,Clarity Travel Management,CPSHQ020723,332.58,Y
Crown Prosecution Service ,19/07/23,UK Hotels,PF People and Business Change,Clarity Travel Management,CPSHQ020723,361.50,Y
Crown Prosecution Service ,19/07/23,UK Hotels,Permanent Transfer Costs,Clarity Travel Management,CPSHQ020723,320.40,Y
Crown Prosecution Service ,19/07/23,UK Hotels,CFO Commercial,Clarity Travel Management,CPSHQ020723,306.00,Y
Crown Prosecution Service ,19/07/23,UK Hotels,DID Security and Information,Clarity Travel Management,CPSHQ020723,"1,280.46",Y
Crown Prosecution Service ,19/07/23,UK Hotels,DID Operational Process,Clarity Travel Management,CPSHQ020723,60.51,Y
Crown Prosecution Service ,19/07/23,UK Hotels,PF Analytics and Workforce Plan,Clarity Travel Management,CPSHQ020723,605.57,Y
Crown Prosecution Service ,19/07/23,UK Hotels,PF HR Business Management,Clarity Travel Management,CPSHQ020723,76.00,Y
Crown Prosecution Service ,19/07/23,UK Hotels,Strategy and Policy,Clarity Travel Management,CPSHQ020723,"1,178.90",Y
Crown Prosecution Service ,19/07/23,UK Hotels,DID Central Leadership Team,Clarity Travel Management,CPSHQ020723,109.00,Y
Crown Prosecution Service ,19/07/23,UK Hotels,Operational Change,Clarity Travel Management,CPSHQ020723,"1,565.94",Y
Crown Prosecution Service ,19/07/23,UK Hotels,DID DTS Technology,Clarity Travel Management,CPSHQ020723,"1,947.42",Y
Crown Prosecution Service ,19/07/23,UK National rail travel,Press Office,Clarity Travel Management,CPSHQ020723,326.20,
Crown Prosecution Service ,19/07/23,UK National rail travel,Operational Performance,Clarity Travel Management,CPSHQ020723,"2,307.50",
Crown Prosecution Service ,19/07/23,UK National rail travel,DID DTS Change,Clarity Travel Management,CPSHQ020723,"2,692.90",
Crown Prosecution Service ,19/07/23,UK National rail travel,PF HR Operations,Clarity Travel Management,CPSHQ020723,559.10,
Crown Prosecution Service ,19/07/23,UK National rail travel,DID Operational Process,Clarity Travel Management,CPSHQ020723,382.30,
Crown Prosecution Service ,19/07/23,UK National rail travel,PF Learning and Development General,Clarity Travel Management,CPSHQ020723,668.30,
Crown Prosecution Service ,19/07/23,UK National rail travel,Strategy and Policy,Clarity Travel Management,CPSHQ020723,"2,621.00",
Crown Prosecution Service ,19/07/23,UK National rail travel,PF People and Business Change,Clarity Travel Management,CPSHQ020723,"2,187.10",
Crown Prosecution Service ,19/07/23,UK National rail travel,DID Security and Information,Clarity Travel Management,CPSHQ020723,155.30,
Crown Prosecution Service ,19/07/23,UK National rail travel,CFO Commercial,Clarity Travel Management,CPSHQ020723,505.10,
Crown Prosecution Service ,19/07/23,UK National rail travel,DID DTS Technology,Clarity Travel Management,CPSHQ020723,"1,813.80",
Crown Prosecution Service ,19/07/23,UK National rail travel,Central Operational Training,Clarity Travel Management,CPSHQ020723,194.60,
Crown Prosecution Service ,19/07/23,UK National rail travel,Operational Business Support,Clarity Travel Management,CPSHQ020723,"1,648.20",
Crown Prosecution Service ,19/07/23,UK National rail travel,DID Central Leadership Team,Clarity Travel Management,CPSHQ020723,356.30,
Crown Prosecution Service ,19/07/23,UK National rail travel,Central Legal Training Team,Clarity Travel Management,CPSHQ020723,"1,186.70",
Crown Prosecution Service ,19/07/23,UK National rail travel,CFO Estates,Clarity Travel Management,CPSHQ020723,385.90,
Crown Prosecution Service ,19/07/23,UK National rail travel,Corporate Communication,Clarity Travel Management,CPSHQ020723,761.90,
Crown Prosecution Service ,19/07/23,UK National rail travel,Chief Finance Officer,Clarity Travel Management,CPSHQ020723,"1,592.80",
Crown Prosecution Service ,19/07/23,UK National rail travel,CFO Financial Reporting,Clarity Travel Management,CPSHQ020723,49.40,
Crown Prosecution Service ,19/07/23,UK National rail travel,Permanent Transfer Costs,Clarity Travel Management,CPSHQ020723,329.50,
Crown Prosecution Service ,19/07/23,UK National rail travel,PF Resourcing,Clarity Travel Management,CPSHQ020723,479.60,
Crown Prosecution Service ,19/07/23,UK National rail travel,CFO Fin System Change and Costings,Clarity Travel Management,CPSHQ020723,280.70,
Crown Prosecution Service ,19/07/23,UK National rail travel,Private Office,Clarity Travel Management,CPSHQ020723,150.00,
Crown Prosecution Service ,19/07/23,UK National rail travel,Director of Legal Services,Clarity Travel Management,CPSHQ020723,374.70,
Crown Prosecution Service ,19/07/23,UK National rail travel,CFO Strategic Financial Planning,Clarity Travel Management,CPSHQ020723,228.70,
Crown Prosecution Service ,19/07/23,UK National rail travel,DTUS,Clarity Travel Management,CPSHQ020723,86.00,
Crown Prosecution Service ,19/07/23,UK National rail travel,PF Analytics and Workforce Plan,Clarity Travel Management,CPSHQ020723,747.60,
Crown Prosecution Service ,19/07/23,UK National rail travel,PF HR Business Partnering,Clarity Travel Management,CPSHQ020723,188.90,
Crown Prosecution Service ,19/07/23,UK National rail travel,Operational Change,Clarity Travel Management,CPSHQ020723,"1,820.50",
Crown Prosecution Service ,19/07/23,UK National rail travel,Compliance and Assurance,Clarity Travel Management,CPSHQ020723,81.60,
Crown Prosecution Service ,19/07/23,UK Hotels,Central Legal Training Team,Clarity Travel Management,CPSHQ250623,"1,394.39",Y
Crown Prosecution Service ,19/07/23,UK Hotels,DID DTS Technology,Clarity Travel Management,CPSHQ250623,184.00,Y
Crown Prosecution Service ,19/07/23,UK Hotels,PF Resourcing,Clarity Travel Management,CPSHQ250623,61.00,Y
Crown Prosecution Service ,19/07/23,UK Hotels,Strategy and Policy,Clarity Travel Management,CPSHQ250623,505.98,Y
Crown Prosecution Service ,19/07/23,UK Hotels,Chief Finance Officer,Clarity Travel Management,CPSHQ250623,269.50,Y
Crown Prosecution Service ,19/07/23,UK Hotels,DTUS,Clarity Travel Management,CPSHQ250623,81.10,Y
Crown Prosecution Service ,19/07/23,UK Hotels,Operational Business Support,Clarity Travel Management,CPSHQ250623,251.49,Y
Crown Prosecution Service ,19/07/23,UK Hotels,Private Office,Clarity Travel Management,CPSHQ250623,463.02,Y
Crown Prosecution Service ,19/07/23,UK Hotels,Operational Change,Clarity Travel Management,CPSHQ250623,447.86,Y
Crown Prosecution Service ,19/07/23,UK Hotels,DID Security and Information,Clarity Travel Management,CPSHQ250623,468.75,Y
Crown Prosecution Service ,19/07/23,UK Hotels,Permanent Transfer Costs,Clarity Travel Management,CPSHQ250623,852.22,Y
Crown Prosecution Service ,19/07/23,UK Hotels,CFO Estates,Clarity Travel Management,CPSHQ250623,164.12,Y
Crown Prosecution Service ,19/07/23,UK Hotels,Press Office,Clarity Travel Management,CPSHQ250623,386.01,Y
Crown Prosecution Service ,19/07/23,UK Hotels,DID DTS Change,Clarity Travel Management,CPSHQ250623,163.00,Y
Crown Prosecution Service ,19/07/23,UK Hotels,DID Operational Process,Clarity Travel Management,CPSHQ250623,312.50,Y
Crown Prosecution Service ,19/07/23,UK Hotels,CFO Commercial,Clarity Travel Management,CPSHQ250623,"2,144.94",Y
Crown Prosecution Service ,19/07/23,UK Hotels,PF Learning and Development General,Clarity Travel Management,CPSHQ250623,91.00,Y
Crown Prosecution Service ,19/07/23,UK Hotels,PF HR Systems and Information,Clarity Travel Management,CPSHQ250623,546.00,Y
Crown Prosecution Service ,19/07/23,UK National rail travel,PF Resourcing,Clarity Travel Management,CPSHQ250623,392.50,
Crown Prosecution Service ,19/07/23,UK National rail travel,CFO Estates,Clarity Travel Management,CPSHQ250623,303.10,
Crown Prosecution Service ,19/07/23,UK National rail travel,DID DTS Change,Clarity Travel Management,CPSHQ250623,"2,072.95",
Crown Prosecution Service ,19/07/23,UK National rail travel,Corporate Communication,Clarity Travel Management,CPSHQ250623,"1,801.70",
Crown Prosecution Service ,19/07/23,UK National rail travel,Operational Business Support,Clarity Travel Management,CPSHQ250623,222.00,
Crown Prosecution Service ,19/07/23,UK National rail travel,PF HR Systems and Information,Clarity Travel Management,CPSHQ250623,159.50,
Crown Prosecution Service ,19/07/23,UK National rail travel,PF Staff Network (General),Clarity Travel Management,CPSHQ250623,48.05,
Crown Prosecution Service ,19/07/23,UK National rail travel,Press Office,Clarity Travel Management,CPSHQ250623,240.60,
Crown Prosecution Service ,19/07/23,UK National rail travel,Central Legal Training Team,Clarity Travel Management,CPSHQ250623,971.50,
Crown Prosecution Service ,19/07/23,UK National rail travel,CFO Commercial,Clarity Travel Management,CPSHQ250623,366.30,
Crown Prosecution Service ,19/07/23,UK National rail travel,Strategy and Policy,Clarity Travel Management,CPSHQ250623,"1,779.40",
Crown Prosecution Service ,19/07/23,UK National rail travel,PF HR Operations,Clarity Travel Management,CPSHQ250623,276.50,
Crown Prosecution Service ,19/07/23,UK National rail travel,DID DTS Technology,Clarity Travel Management,CPSHQ250623,354.00,
Crown Prosecution Service ,19/07/23,UK National rail travel,CFO Finance Operations,Clarity Travel Management,CPSHQ250623,340.30,
Crown Prosecution Service ,19/07/23,Overseas Air travel,DID DTS Change,Clarity Travel Management,CPSHQ250623,"1,090.80",
Crown Prosecution Service ,19/07/23,UK National rail travel,Private Office,Clarity Travel Management,CPSHQ250623,59.20,
Crown Prosecution Service ,19/07/23,UK National rail travel,PF Analytics and Workforce Plan,Clarity Travel Management,CPSHQ250623,846.50,
Crown Prosecution Service ,19/07/23,UK National rail travel,Director of Legal Services,Clarity Travel Management,CPSHQ250623,"1,086.40",
Crown Prosecution Service ,19/07/23,UK National rail travel,Operational Change,Clarity Travel Management,CPSHQ250623,"1,382.90",
Crown Prosecution Service ,19/07/23,UK National rail travel,Compliance and Assurance,Clarity Travel Management,CPSHQ250623,428.50,
Crown Prosecution Service ,19/07/23,UK National rail travel,PF HR Business Partnering,Clarity Travel Management,CPSHQ250623,496.10,
Crown Prosecution Service ,19/07/23,UK National rail travel,DID Central Leadership Team,Clarity Travel Management,CPSHQ250623,308.50,
Crown Prosecution Service ,19/07/23,UK National rail travel,Operational Performance,Clarity Travel Management,CPSHQ250623,"2,867.10",
Crown Prosecution Service ,19/07/23,UK National rail travel,Permanent Transfer Costs,Clarity Travel Management,CPSHQ250623,372.50,
Crown Prosecution Service ,19/07/23,UK National rail travel,DTUS,Clarity Travel Management,CPSHQ250623,335.70,
Crown Prosecution Service ,19/07/23,UK National rail travel,Central Operational Training,Clarity Travel Management,CPSHQ250623,761.80,
Crown Prosecution Service ,19/07/23,UK National rail travel,CFO Fin System Change and Costings,Clarity Travel Management,CPSHQ250623,828.30,
Crown Prosecution Service ,19/07/23,UK National rail travel,DID Operational Process,Clarity Travel Management,CPSHQ250623,223.60,
Crown Prosecution Service ,19/07/23,UK National rail travel,DID Security and Information,Clarity Travel Management,CPSHQ250623,"1,520.50",
Crown Prosecution Service ,19/07/23,UK National rail travel,PF HR Business Management,Clarity Travel Management,CPSHQ250623,327.40,
Crown Prosecution Service ,19/07/23,UK National rail travel,Chief Finance Officer,Clarity Travel Management,CPSHQ250623,862.60,
Crown Prosecution Service ,19/07/23,UK National rail travel,PF People and Business Change,Clarity Travel Management,CPSHQ250623,530.00,
Crown Prosecution Service ,19/07/23,UK National rail travel,PF Learning and Development General,Clarity Travel Management,CPSHQ250623,"1,236.80",
Crown Prosecution Service ,19/07/23,Recoverable VAT control,Balance Sheet,CGI IT UK Ltd,GB014108936,"215,958.02",Y
Crown Prosecution Service ,19/07/23,IT services,Apps and Hosting Contract,CGI IT UK Ltd,GB014108936,"1,079,790.09",
Crown Prosecution Service ,19/07/23,Crown Court Very High Cost Cases Full Scheme,Special Crime Unit London,QEB Hollis Whiteman Chambers,PEKC 111420 17,"42,220.70",Y
Crown Prosecution Service ,20/07/23,Ordinary Witness Expenses,Wessex Complex Casework Unit,Clarity Travel Management,000000114291,85.50,Y
Crown Prosecution Service ,20/07/23,Ordinary Witness Expenses,London South RASSO,Clarity Travel Management,000000114291,477.07,Y
Crown Prosecution Service ,20/07/23,Ordinary Witness Expenses,West Midlands Crown Court Unit,Clarity Travel Management,000000114291,363.70,
Crown Prosecution Service ,20/07/23,Ordinary Witness Expenses,London South Complex Casework Unit,Clarity Travel Management,000000114291,112.50,
Crown Prosecution Service ,20/07/23,Ordinary Witness Expenses,London North RASSO,Clarity Travel Management,000000114291,"10,270.74",
Crown Prosecution Service ,20/07/23,Ordinary Witness Expenses,East of England Crown Court,Clarity Travel Management,000000114291,"3,130.71",
Crown Prosecution Service ,20/07/23,Ordinary Witness Expenses,Wessex Magistrates Court Unit,Clarity Travel Management,000000114291,70.10,
Crown Prosecution Service ,20/07/23,Ordinary Witness Expenses,North West Complex Casework Unit,Clarity Travel Management,000000114291,25.00,
Crown Prosecution Service ,20/07/23,Ordinary Witness Expenses,East Midlands Magistrates Court Section,Clarity Travel Management,000000114291,86.40,
Crown Prosecution Service ,20/07/23,Ordinary Witness Expenses,North West Crown Court Hub,Clarity Travel Management,000000114291,79.20,
Crown Prosecution Service ,20/07/23,Ordinary Witness Expenses,East of England Magistrates Court,Clarity Travel Management,000000114291,129.90,
Crown Prosecution Service ,20/07/23,Ordinary Witness Expenses,Special Crime Unit York,Clarity Travel Management,000000114291,203.50,
Crown Prosecution Service ,20/07/23,Ordinary Witness Expenses,North West RASSO Unit,Clarity Travel Management,000000114291,111.00,
Crown Prosecution Service ,20/07/23,Ordinary Witness Expenses,North West Magistrates Court Hub,Clarity Travel Management,000000114291,495.50,
Crown Prosecution Service ,20/07/23,Ordinary Witness Expenses,Cymru Wales South East Crown Court,Clarity Travel Management,000000114291,242.48,
Crown Prosecution Service ,20/07/23,Ordinary Witness Expenses,North East RASSO Unit,Clarity Travel Management,000000114291,137.98,Y
Crown Prosecution Service ,20/07/23,Ordinary Witness Expenses,Yorks and Humbs Mags Court Legal,Clarity Travel Management,000000114291,"1,363.54",Y
Crown Prosecution Service ,20/07/23,Ordinary Witness Expenses,East Midlands Crown Court Section,Clarity Travel Management,000000114291,644.84,Y
Crown Prosecution Service ,20/07/23,Ordinary Witness Expenses,London North Magistrates Court Unit,Clarity Travel Management,000000114291,178.89,Y
Crown Prosecution Service ,20/07/23,Ordinary Witness Expenses,South East RASSO Unit,Clarity Travel Management,000000114291,"1,055.85",Y
Crown Prosecution Service ,20/07/23,Ordinary Witness Expenses,Yorks and Humbs CC Legal,Clarity Travel Management,000000114291,296.96,Y
Crown Prosecution Service ,20/07/23,Ordinary Witness Expenses,West Midlands Complex Casework Unit,Clarity Travel Management,000000114291,615.94,Y
Crown Prosecution Service ,20/07/23,Ordinary Witness Expenses,London South Crown Court Unit,Clarity Travel Management,000000114291,"9,679.57",Y
Crown Prosecution Service ,20/07/23,Ordinary Witness Expenses,East of England RASSO Unit,Clarity Travel Management,000000114291,367.80,Y
Crown Prosecution Service ,20/07/23,Ordinary Witness Expenses,Thames and Chiltern RASSO Unit,Clarity Travel Management,000000114291,111.80,Y
Crown Prosecution Service ,20/07/23,Ordinary Witness Expenses,Wessex RASSO Unit,Clarity Travel Management,000000114291,36.50,Y
Crown Prosecution Service ,20/07/23,Ordinary Witness Expenses,London North Crown Court Unit,Clarity Travel Management,000000114291,119.41,Y
Crown Prosecution Service ,20/07/23,Ordinary Witness Expenses,South East Complex Casework Unit,Clarity Travel Management,000000114291,"1,456.35",Y
Crown Prosecution Service ,20/07/23,Ordinary Witness Expenses,North East Crown Court Unit,Clarity Travel Management,000000114291,20.68,Y
Crown Prosecution Service ,20/07/23,Ordinary Witness Expenses,West Midlands RASSO Unit,Clarity Travel Management,000000114291,"1,188.15",Y
Crown Prosecution Service ,20/07/23,Ordinary Witness Expenses,East Midlands RASSO Unit,Clarity Travel Management,000000114291,118.40,Y
Crown Prosecution Service ,20/07/23,Ordinary Witness Expenses,Thames Chiltern Crown Court Unit,Clarity Travel Management,000000114291,581.26,Y
Crown Prosecution Service ,20/07/23,Ordinary Witness Expenses,West Midlands British Transport Police,Clarity Travel Management,000000114291,70.00,Y
Crown Prosecution Service ,20/07/23,Ordinary Witness Expenses,East of England Complex Casework Unit,Clarity Travel Management,000000114291,346.39,Y
Crown Prosecution Service ,20/07/23,Ordinary Witness Expenses,Mersey Cheshire Crown Court Unit,Clarity Travel Management,000000114291,167.00,Y
Crown Prosecution Service ,20/07/23,Ordinary Witness Expenses,Wessex Magistrates Court Unit,Clarity Travel Management,000000114645,102.60,Y
Crown Prosecution Service ,20/07/23,Ordinary Witness Expenses,South West Crown Court,Clarity Travel Management,000000114645,"1,108.04",Y
Crown Prosecution Service ,20/07/23,Ordinary Witness Expenses,North West Magistrates Court Hub,Clarity Travel Management,000000114645,114.48,Y
Crown Prosecution Service ,20/07/23,Ordinary Witness Expenses,Wessex Crown Court Unit,Clarity Travel Management,000000114645,305.50,
Crown Prosecution Service ,20/07/23,Ordinary Witness Expenses,Thames Chiltern Crown Court Unit,Clarity Travel Management,000000114645,185.30,
Crown Prosecution Service ,20/07/23,Ordinary Witness Expenses,North West RASSO Unit,Clarity Travel Management,000000114645,486.70,
Crown Prosecution Service ,20/07/23,Ordinary Witness Expenses,South West RASSO Unit Crown Court,Clarity Travel Management,000000114645,142.60,
Crown Prosecution Service ,20/07/23,Ordinary Witness Expenses,RWD Midlands Wales Unit,Clarity Travel Management,000000114645,705.78,
Crown Prosecution Service ,20/07/23,Ordinary Witness Expenses,Special Crime Unit London,Clarity Travel Management,000000114645,377.90,
Crown Prosecution Service ,20/07/23,Ordinary Witness Expenses,East of England Crown Court,Clarity Travel Management,000000114645,680.00,
Crown Prosecution Service ,20/07/23,Ordinary Witness Expenses,London North Complex Casework Unit,Clarity Travel Management,000000114645,"1,200.21",
Crown Prosecution Service ,20/07/23,Ordinary Witness Expenses,Mersey Cheshire Magistrates Court Unit,Clarity Travel Management,000000114645,25.40,
Crown Prosecution Service ,20/07/23,Ordinary Witness Expenses,London South Magistrates Court Unit,Clarity Travel Management,000000114645,387.10,
Crown Prosecution Service ,20/07/23,Ordinary Witness Expenses,Cymru Wales South East Crown Court,Clarity Travel Management,000000114645,223.86,Y
Crown Prosecution Service ,20/07/23,Ordinary Witness Expenses,Yorks and Humbs Mags Court Legal,Clarity Travel Management,000000114645,217.74,Y
Crown Prosecution Service ,20/07/23,Ordinary Witness Expenses,London South Crown Court Unit,Clarity Travel Management,000000114645,"16,560.26",Y
Crown Prosecution Service ,20/07/23,Ordinary Witness Expenses,Yorkshire and Humberside RASSO Unit,Clarity Travel Management,000000114645,13.79,Y
Crown Prosecution Service ,20/07/23,Ordinary Witness Expenses,West Midlands RASSO Unit,Clarity Travel Management,000000114645,886.27,Y
Crown Prosecution Service ,20/07/23,Ordinary Witness Expenses,London North RASSO,Clarity Travel Management,000000114645,813.09,Y
Crown Prosecution Service ,20/07/23,Ordinary Witness Expenses,East Midlands Crown Court Section,Clarity Travel Management,000000114645,852.87,Y
Crown Prosecution Service ,20/07/23,Ordinary Witness Expenses,London South RASSO,Clarity Travel Management,000000114645,210.30,Y
Crown Prosecution Service ,20/07/23,Ordinary Witness Expenses,London South Complex Casework Unit,Clarity Travel Management,000000114645,633.49,Y
Crown Prosecution Service ,20/07/23,Ordinary Witness Expenses,East Midlands Magistrates Court Section,Clarity Travel Management,000000114645,455.80,Y
Crown Prosecution Service ,20/07/23,Ordinary Witness Expenses,Cymru Wales West Magistrates Court,Clarity Travel Management,000000114645,132.40,Y
Crown Prosecution Service ,20/07/23,Ordinary Witness Expenses,South East Magistrates Court,Clarity Travel Management,000000114645,188.40,Y
Crown Prosecution Service ,20/07/23,Ordinary Witness Expenses,London North Crown Court Unit,Clarity Travel Management,000000114645,624.52,Y
Crown Prosecution Service ,20/07/23,Ordinary Witness Expenses,South East Complex Casework Unit,Clarity Travel Management,000000114645,"1,837.00",Y
Crown Prosecution Service ,20/07/23,Ordinary Witness Expenses,West Midlands Complex Casework Unit,Clarity Travel Management,000000114645,"3,041.66",Y
Crown Prosecution Service ,20/07/23,Ordinary Witness Expenses,West Midlands Crown Court Unit,Clarity Travel Management,000000114645,460.18,Y
Crown Prosecution Service ,20/07/23,Ordinary Witness Expenses,Mersey Cheshire Crown Court Unit,Clarity Travel Management,000000114645,618.70,Y
Crown Prosecution Service ,20/07/23,Ordinary Witness Expenses,Special Crime Unit York,Clarity Travel Management,000000114645,247.94,Y
Crown Prosecution Service ,20/07/23,Crown Court Graduated Fee Scheme,London North Complex Casework Unit,Furnival Chambers,180930/JDS/,"25,287.12",Y
Crown Prosecution Service ,20/07/23,Crown Court Graduated Fee Scheme,East Midlands RASSO Unit,23 Essex Street Chambers,204465-EM-trial,"26,468.70",Y
Crown Prosecution Service ,20/07/23,Crown Court Graduated Fee Scheme,SEOC Team 2,36 Bedford Row,217807/JBT,"34,768.80",Y
Crown Prosecution Service ,20/07/23,Crown Court Graduated Fee Scheme,East Midlands Crown Court Section,2 Kings Bench Walk London,299238-SPKC,"95,030.40",
Crown Prosecution Service ,20/07/23,Crown Court Very High Cost Cases Full Scheme,Cymru Wales Complex Casework Unit,Apex Chambers,45880-10/CLR,"58,801.20",Y
Crown Prosecution Service ,20/07/23,Crown Court Very High Cost Cases Full Scheme,Cymru Wales Complex Casework Unit,Apex Chambers,45880-10/RR,"38,470.80",Y
Crown Prosecution Service ,20/07/23,Crown Court Graduated Fee Scheme,West Midlands Complex Casework Unit,No 5 Fountain Court Chambers,790286/5,"28,009.20",Y
Crown Prosecution Service ,20/07/23,UK Hotels,DID Central Leadership Team,Clarity Travel Management,CPSHQ090723,325.00,Y
Crown Prosecution Service ,20/07/23,UK National rail travel,Corporate Communication,Clarity Travel Management,CPSHQ090723,871.50,
Crown Prosecution Service ,20/07/23,UK National rail travel,PF Resourcing,Clarity Travel Management,CPSHQ090723,"1,035.30",
Crown Prosecution Service ,20/07/23,UK National rail travel,Permanent Transfer Costs,Clarity Travel Management,CPSHQ090723,711.30,
Crown Prosecution Service ,20/07/23,UK National rail travel,PF HR Operations,Clarity Travel Management,CPSHQ090723,786.00,
Crown Prosecution Service ,20/07/23,UK National rail travel,DID DTS Technology,Clarity Travel Management,CPSHQ090723,582.30,
Crown Prosecution Service ,20/07/23,UK National rail travel,Private Office,Clarity Travel Management,CPSHQ090723,260.90,
Crown Prosecution Service ,20/07/23,UK National rail travel,Compliance and Assurance,Clarity Travel Management,CPSHQ090723,"1,200.50",
Crown Prosecution Service ,20/07/23,UK National rail travel,Chief Finance Officer,Clarity Travel Management,CPSHQ090723,163.20,
Crown Prosecution Service ,20/07/23,UK National rail travel,Central Operational Training,Clarity Travel Management,CPSHQ090723,16.40,
Crown Prosecution Service ,20/07/23,UK National rail travel,DID Security and Information,Clarity Travel Management,CPSHQ090723,"3,165.40",
Crown Prosecution Service ,20/07/23,UK National rail travel,DID DTS Change,Clarity Travel Management,CPSHQ090723,"2,406.90",
Crown Prosecution Service ,20/07/23,UK National rail travel,Court Business Unit,Clarity Travel Management,CPSHQ090723,733.70,
Crown Prosecution Service ,20/07/23,UK National rail travel,PF HR Systems and Information,Clarity Travel Management,CPSHQ090723,108.00,
Crown Prosecution Service ,20/07/23,UK National rail travel,PF HR Business Partnering,Clarity Travel Management,CPSHQ090723,554.50,
Crown Prosecution Service ,20/07/23,UK National rail travel,Central Legal Training Team,Clarity Travel Management,CPSHQ090723,132.60,
Crown Prosecution Service ,20/07/23,UK National rail travel,PF Learning and Development General,Clarity Travel Management,CPSHQ090723,733.50,
Crown Prosecution Service ,20/07/23,UK National rail travel,Strategy and Policy,Clarity Travel Management,CPSHQ090723,860.15,
Crown Prosecution Service ,20/07/23,UK National rail travel,DID Central Leadership Team,Clarity Travel Management,CPSHQ090723,705.60,
Crown Prosecution Service ,20/07/23,UK National rail travel,CFO Finance Operations,Clarity Travel Management,CPSHQ090723,110.70,
Crown Prosecution Service ,20/07/23,UK National rail travel,DID Operational Process,Clarity Travel Management,CPSHQ090723,718.20,
Crown Prosecution Service ,20/07/23,UK National rail travel,Operational Change,Clarity Travel Management,CPSHQ090723,"1,629.85",
Crown Prosecution Service ,20/07/23,UK National rail travel,CFO Commercial,Clarity Travel Management,CPSHQ090723,870.40,
Crown Prosecution Service ,20/07/23,UK National rail travel,Operational Performance,Clarity Travel Management,CPSHQ090723,"2,304.50",
Crown Prosecution Service ,20/07/23,UK National rail travel,Press Office,Clarity Travel Management,CPSHQ090723,106.40,
Crown Prosecution Service ,20/07/23,UK National rail travel,Operational Business Support,Clarity Travel Management,CPSHQ090723,"1,679.50",
Crown Prosecution Service ,20/07/23,UK National rail travel,PF People and Business Change,Clarity Travel Management,CPSHQ090723,909.00,
Crown Prosecution Service ,20/07/23,UK Hotels,Central Legal Training Team,Clarity Travel Management,CPSHQ090723,"1,787.36",Y
Crown Prosecution Service ,20/07/23,UK Hotels,DID Operational Process,Clarity Travel Management,CPSHQ090723,201.00,Y
Crown Prosecution Service ,20/07/23,UK Hotels,Permanent Transfer Costs,Clarity Travel Management,CPSHQ090723,364.20,Y
Crown Prosecution Service ,20/07/23,UK Hotels,Director of Legal Services,Clarity Travel Management,CPSHQ090723,540.60,Y
Crown Prosecution Service ,20/07/23,UK Hotels,Corporate Communication,Clarity Travel Management,CPSHQ090723,640.00,Y
Crown Prosecution Service ,20/07/23,UK Hotels,DID DTS Technology,Clarity Travel Management,CPSHQ090723,889.57,Y
Crown Prosecution Service ,20/07/23,UK Hotels,DTUS,Clarity Travel Management,CPSHQ090723,160.99,Y
Crown Prosecution Service ,20/07/23,UK Hotels,DID Security and Information,Clarity Travel Management,CPSHQ090723,465.30,Y
Crown Prosecution Service ,20/07/23,UK Hotels,CFO Commercial,Clarity Travel Management,CPSHQ090723,451.00,Y
Crown Prosecution Service ,20/07/23,UK Hotels,Strategy and Policy,Clarity Travel Management,CPSHQ090723,"1,102.80",Y
Crown Prosecution Service ,20/07/23,UK Hotels,DID DTS Change,Clarity Travel Management,CPSHQ090723,968.54,Y
Crown Prosecution Service ,20/07/23,UK Hotels,Operational Business Support,Clarity Travel Management,CPSHQ090723,939.29,Y
Crown Prosecution Service ,20/07/23,UK Hotels,PF People and Business Change,Clarity Travel Management,CPSHQ090723,237.60,Y
Crown Prosecution Service ,20/07/23,UK Hotels,CFO Estates,Clarity Travel Management,CPSHQ090723,67.99,Y
Crown Prosecution Service ,20/07/23,UK Hotels,PF HR Systems and Information,Clarity Travel Management,CPSHQ090723,176.17,Y
Crown Prosecution Service ,20/07/23,UK Hotels,PF Learning and Development General,Clarity Travel Management,CPSHQ090723,274.00,Y
Crown Prosecution Service ,20/07/23,UK Hotels,CFO Finance Operations,Clarity Travel Management,CPSHQ090723,151.00,Y
Crown Prosecution Service ,20/07/23,UK Hotels,Operational Performance,Clarity Travel Management,CPSHQ090723,486.97,Y
Crown Prosecution Service ,20/07/23,UK Hotels,Operational Change,Clarity Travel Management,CPSHQ090723,288.60,Y
Crown Prosecution Service ,20/07/23,Crown Court Graduated Fee Scheme,South East RASSO Unit,2 Bedford Row Chambers,HLW ,"40,238.04",
Crown Prosecution Service ,20/07/23,IT non capital software licences,Legal Reference and ICT Licenses,Sprout Social Inc Chicago,INV-39711,"75,074.13",
Crown Prosecution Service ,21/07/23,IT non capital software licences,Legal Reference and ICT Licenses,Konica Minolta Business Solutions Limited,1165428353,"414,898.80",Y
Crown Prosecution Service ,21/07/23,Crown Court Graduated Fee Scheme,Mersey Cheshire Complex Casework Unit,Harrington Street Chambers,1180692/NPP,"39,023.94",
Crown Prosecution Service ,21/07/23,Crown Court Graduated Fee Scheme,RWD Midlands Wales Unit,Cloth Fair Chambers,18272 - 2023,"29,407.63",Y
Crown Prosecution Service ,21/07/23,Crown Court Graduated Fee Scheme,North West Crown Court Hub,23 Essex Street Chambers,197524-LWI-Trial,"61,418.40",Y
Crown Prosecution Service ,21/07/23,Crown Court Graduated Fee Scheme,East Midlands Crown Court Section,1 High Pavement Chambers,277586 EH,"47,514.00",Y
Crown Prosecution Service ,21/07/23,General Professional Services,DID Security and Information,Cabinet Office RM Shared Services,3830138,"105,600.00",Y
Crown Prosecution Service ,21/07/23,IT services,CFO Commercial,Jaggaer London,INVUK2465,"26,220.00",Y
Crown Prosecution Service ,21/07/23,Other Staff Costs,Other Corporate Admin Payments,Reward Gateway (UK) Ltd,UK094636SI,"40,000.00",
Crown Prosecution Service ,24/07/23,Crown Court Graduated Fee Scheme,RWD Midlands Wales Unit,Seven Bedford Row,193265an,"43,321.16",Y
Crown Prosecution Service ,24/07/23,Crown Court Graduated Fee Scheme,South West Complex Casework Unit,Guildhall Chambers Bristol,199449- ,"57,758.94",Y
Crown Prosecution Service ,24/07/23,Recoverable VAT control,Balance Sheet,Konica Minolta Business Solutions Limited,Bulk202306,"33,684.14",Y
Crown Prosecution Service ,24/07/23,Variable lease payment expenses IT and Equipment,Print Contract,Konica Minolta Business Solutions Limited,Bulk202306,"147,630.76",
Crown Prosecution Service ,24/07/23,Lease liability non current lease payments,Balance Sheet,Konica Minolta Business Solutions Limited,Bulk202306,"20,790.00",
Crown Prosecution Service ,24/07/23,Recoverable VAT control,Balance Sheet,Konica Minolta Business Solutions Limited,Fleet202306,"24,346.44",Y
Crown Prosecution Service ,24/07/23,Variable lease payment expenses IT and Equipment,Print Contract,Konica Minolta Business Solutions Limited,Fleet202306,"121,732.20",
Crown Prosecution Service ,24/07/23,Recoverable VAT control,Balance Sheet,CGI IT UK Ltd,GB014109581,"18,685.31",Y
Crown Prosecution Service ,24/07/23,IT services,Service Desk Contract,CGI IT UK Ltd,GB014109581,"93,426.55",
Crown Prosecution Service ,24/07/23,IT services,DTS Programme Project Cost,CGI IT UK Ltd,GB014109600,"35,639.20",Y
Crown Prosecution Service ,25/07/23,General Professional Services,Victim Transformation Prog,Ipsos Market Research Ltd London,23001694,"42,210.00",Y
Crown Prosecution Service ,25/07/23,Recoverable VAT control,Balance Sheet,Trustmarque Solutions Ltd,2366947,"10,740.08",Y
Crown Prosecution Service ,25/07/23,IT non capital software licences,Legal Reference and ICT Licenses,Trustmarque Solutions Ltd,2366947,"53,700.38",
Crown Prosecution Service ,25/07/23,Recoverable VAT control,Balance Sheet,Oracle Corporation UK Ltd,460094723,"4,909.44",Y
Crown Prosecution Service ,25/07/23,IT non capital software licences,Legal Reference and ICT Licenses,Oracle Corporation UK Ltd,460094723,"24,547.18",
Crown Prosecution Service ,25/07/23,Recoverable VAT control,Balance Sheet,FlyForm LTD Cardiff,INV-11444,"4,879.21",Y
Crown Prosecution Service ,25/07/23,IT services,DTS Programme Project Cost,FlyForm LTD Cardiff,INV-11444,"24,395.99",
Crown Prosecution Service ,25/07/23,IT services,End User Computing Contract,ACS Systems UK Limited Northampton,INV433575,"29,895.30",Y
Crown Prosecution Service ,25/07/23,Recoverable VAT control,Balance Sheet,Bray Leino Ltd Devon,SI0038912BLE,"4,553.08",Y
Crown Prosecution Service ,25/07/23,General Professional Services,IAP Conference,Bray Leino Ltd Devon,SI0038912BLE,"22,765.40",
Crown Prosecution Service ,25/07/23,Recoverable VAT control,Balance Sheet,Bray Leino Ltd Devon,SI0038926BLE,"6,237.76",Y
Crown Prosecution Service ,25/07/23,General Professional Services,IAP Conference,Bray Leino Ltd Devon,SI0038926BLE,"31,188.80",
Crown Prosecution Service ,26/07/23,Transcriptions and Translation,Other Corporate Programme Payments,Epiq Europe Ltd (Wordwave),0000001529,"25,128.60",
Crown Prosecution Service ,26/07/23,Recoverable VAT control,Balance Sheet,Epiq Europe Ltd (Wordwave),0000001529,"5,025.72",Y
Crown Prosecution Service ,26/07/23,Crown Court Very High Cost Cases Full Scheme,RWD North Unit,St Pauls Chambers Leeds,168223 June,"33,495.00",Y
Crown Prosecution Service ,26/07/23,Recoverable VAT control,Balance Sheet,AVR Transcription Ltd Bolton,36387-MAY23-CPS,"9,739.29",Y
Crown Prosecution Service ,26/07/23,Transcriptions and Translation,Other Corporate Programme Payments,AVR Transcription Ltd Bolton,36387-MAY23-CPS,"48,696.44",
Crown Prosecution Service ,26/07/23,Crown Court Graduated Fee Scheme,Counter Terrorism Unit: Internal Funding,New Park Court Chambers Leeds,365238-3/NPKC,"25,967.52",Y
Crown Prosecution Service ,26/07/23,IT services,End User Computing Contract,WIPRO Holdings London,90376353,"39,508.77",
Crown Prosecution Service ,26/07/23,Recoverable VAT control,Balance Sheet,WIPRO Holdings London,90376353,"7,901.75",Y
Crown Prosecution Service ,26/07/23,Recoverable VAT control,Balance Sheet,WIPRO Holdings London,90376965,"8,118.25",Y
Crown Prosecution Service ,26/07/23,IT services,End User Computing Contract,WIPRO Holdings London,90376965,"40,591.23",
Crown Prosecution Service ,26/07/23,Crown Court Graduated Fee Scheme,Thames and Chiltern Complex Casework Unit,Great James Street Chambers,AHW/32746,"40,306.44",Y
Crown Prosecution Service ,27/07/23,Transcriptions and Translation,Other Corporate Programme Payments,AVR Transcription Ltd Bolton,36496-JUN23-CPS,"55,118.88",
Crown Prosecution Service ,27/07/23,Recoverable VAT control,Balance Sheet,AVR Transcription Ltd Bolton,36496-JUN23-CPS,"11,023.78",Y
Crown Prosecution Service ,27/07/23,Conference Organisation,Private Office,Calder Communications Ltd Leeds,494288,"27,208.01",Y
Crown Prosecution Service ,27/07/23,Community Engagement,Strategy and Policy,NHS England,7000050269,"100,000.00",
Crown Prosecution Service ,27/07/23,Crown Court Graduated Fee Scheme,London North Complex Casework Unit,3 Raymond Buildings,WEJ/253628,"70,174.08",Y
Crown Prosecution Service ,28/07/23,Transcriptions and Translation,Other Corporate Programme Payments,Mendip Media Group Ltd Tiverton,0000000222,"41,768.00",
Crown Prosecution Service ,28/07/23,Recoverable VAT control,Balance Sheet,Mendip Media Group Ltd Tiverton,0000000222,"8,353.60",Y
Crown Prosecution Service ,28/07/23,Crown Court Graduated Fee Scheme,London North Complex Casework Unit,2 Hare Court Chambers -Chambers of Orlando Pownall,121823 FR,"29,621.04",Y
Crown Prosecution Service ,28/07/23,Crown Court Graduated Fee Scheme,West Midlands Complex Casework Unit,6 Pump Court The Chambers of Mr Stephen Hockman,164546/RB1,"48,134.22",Y
Crown Prosecution Service ,28/07/23,Crown Court Graduated Fee Scheme,London North Complex Casework Unit,5 King's Bench Walk,177561 CP1,"35,083.20",Y
Crown Prosecution Service ,28/07/23,Crown Court Graduated Fee Scheme,East Midlands Crown Court Section,36 Bedford Row,221280/AA,"36,465.84",Y
Crown Prosecution Service ,28/07/23,Crown Court Graduated Fee Scheme,East Midlands Crown Court Section,36 Bedford Row,221280/JSC,"78,930.74",Y
Crown Prosecution Service ,28/07/23,Crown Court Graduated Fee Scheme,Special Crime Unit York,St Pauls Chambers Leeds,251554 JFH TR,"38,861.06",Y
Crown Prosecution Service ,28/07/23,Crown Court Graduated Fee Scheme,North East Crown Court Unit,Dere Street Barristers,379054 DL,"27,176.04",
Crown Prosecution Service ,28/07/23,IT services,ICT Network Services,Vodafone Ltd formerly Cable and Wireless Milton Keynes,4034029,"34,714.50",Y
Crown Prosecution Service ,28/07/23,Crown Court Graduated Fee Scheme,North West Crown Court Hub,Exchange Chambers - Manchester,628733 MR,"44,777.88",Y
Crown Prosecution Service ,28/07/23,Crown Court Graduated Fee Scheme,North West Crown Court Hub,Exchange Chambers - Manchester,628733 RAW,"26,663.76",Y
Crown Prosecution Service ,28/07/23,Crown Court Graduated Fee Scheme,Counter Terrorism Unit: Internal Funding,QEB Hollis Whiteman Chambers,AWH 111137 B,"37,580.34",Y
Crown Prosecution Service ,31/07/23,Crown Court Graduated Fee Scheme,London North Complex Casework Unit,5 King's Bench Walk,177906,"44,360.40",Y
Crown Prosecution Service ,31/07/23,Crown Court Graduated Fee Scheme,London North Complex Casework Unit,23 Essex Street Chambers,194440-ALH-1,"127,601.52",Y
Crown Prosecution Service ,31/07/23,Crown Court Very High Cost Cases Full Scheme,East Midlands Complex Casework Unit,Exchange Chambers Leeds ,541980 - CTE JULY-SE,"28,418.50",Y
Crown Prosecution Service ,31/07/23,Crown Court Very High Cost Cases Full Scheme,East Midlands Complex Casework Unit,Exchange Chambers Leeds ,541980CTE SEP NOV 21,"33,592.26",Y
Crown Prosecution Service ,31/07/23,Crown Court Very High Cost Cases Full Scheme,RWD Midlands Wales Unit,Exchange Chambers Leeds ,551578 - CTE JUNE,"83,283.00",Y
Crown Prosecution Service ,31/07/23,Crown Court Graduated Fee Scheme,West Midlands Complex Casework Unit,6 Kings Bench Walk- Chambers of D Fisher & D Perry,97391 CUR.....,"78,286.32",Y
Crown Prosecution Service ,31/07/23,Crown Court Graduated Fee Scheme,West Midlands Complex Casework Unit,QEB Hollis Whiteman Chambers,KR 111233 A,"34,519.08",Y
Crown Prosecution Service ,31/07/23,Crown Court Graduated Fee Scheme,London North Complex Casework Unit,5 King's Bench Walk,MHKC 173145,"72,711.24",Y
Crown Prosecution Service ,31/07/23,Crown Court Graduated Fee Scheme,West Midlands Complex Casework Unit,QEB Hollis Whiteman Chambers,OM 100000 2,"25,238.28",Y
Crown Prosecution Service ,31/07/23,General Professional Services,IAP Conference,Bray Leino Ltd Devon,SI0038967BLE,"42,091.75",
Crown Prosecution Service ,31/07/23,Recoverable VAT control,Balance Sheet,Bray Leino Ltd Devon,SI0038967BLE,"8,418.35",Y
